bitfinex-derivatives/quotes_SOLF0:USTF0_20250909
["timestamp","ask_amount","ask_price","bid_price","bid_amount"]
[1757386083424,7.4,211.49,211.48,1.0]
[1757386083718,7.4,211.49,211.36,3.95]
[1757386085318,7.4,211.49,211.37,123.62]
[1757386085816,7.4,211.49,211.36,3.95]
[1757386086016,4.25900331,211.48,211.36,3.95]
[1757386086214,14.19,211.59,211.36,3.95]
[1757386086215,7.4,211.47,211.36,3.95]
[1757386086622,7.4,211.52,211.36,3.95]
[1757386086819,7.4,211.52,211.33,123.56]
[1757386086820,7.4,211.52,211.39,4.95]
[1757386087019,7.4,211.61,211.39,4.95]
[1757386087215,7.4,211.61,211.46,4.95]
[1757386087417,7.4,211.61,211.47,123.6]
[1757386087924,7.4,211.61,211.46,128.61]
[1757386088315,7.4,211.58,211.46,128.61]
[1757386089228,4.25900331,211.62,211.46,4.95]
[1757386089926,4.25900331,211.62,211.48,4.95]
[1757386090114,4.25900331,211.62,211.49,56.78]
[1757386090321,7.4,211.56,211.42,4.95]
[1757386090616,11.65900331,211.52,211.42,4.95]
[1757386091624,7.4,211.51,211.38,317.8]
[1757386091818,7.4,211.47,211.32,4.95]
[1757386092228,7.4,211.47,211.33,87.94]
[1757386092626,7.4,211.47,211.34,124.08]
[1757386092821,7.4,211.47,211.32,4.95]
[1757386092822,7.4,211.47,211.33,124.06]
[1757386093231,7.4,211.47,211.34,4.98]
[1757386093528,7.4,211.47,211.35,4.25900331]
[1757386093726,7.4,211.47,211.36,4.98]
[1757386096032,7.39,211.43,211.31,4.98]
[1757386098336,7.39,211.48,211.33,4.98]
[1757386099126,7.39,211.48,211.35,4.98]
[1757386100029,7.39,211.48,211.36,15.36]
[1757386100423,7.39,211.48,211.35,4.98]
[1757386100934,7.39,211.46,211.29,4.98]
[1757386101129,7.39,211.46,211.3,60.02]
[1757386101330,7.39,211.46,211.31,4.98]
[1757386102930,7.39,211.46,211.32,115.8]
[1757386103540,7.39,211.46,211.31,4.98]
[1757386103731,7.39,211.46,211.31,128.78]
[1757386104132,7.39,211.46,211.31,4.98]
[1757386106236,7.39,211.46,211.27,4.25900331]
[1757386106434,7.39,211.46,211.27,64.23900331]
[1757386106736,7.39,211.46,211.28,5.94]
[1757386106934,7.39,211.46,211.29,4.98]
[1757386107238,7.39,211.42,211.29,4.98]
[1757386108041,35.38,211.46,211.21,317.98]
[1757386108042,7.39,211.38,211.23,70.2]
[1757386108338,7.39,211.38,211.24,4.98]
[1757386110234,4.25900331,211.42,211.28,4.98]
[1757386110436,7.39,211.44,211.28,4.98]
[1757386110935,4.25900331,211.45,211.28,4.98]
[1757386111235,4.25900331,211.45,211.28,11.46]
[1757386111539,4.25900331,211.45,211.28,17.38]
[1757386111942,7.39,211.4,211.28,4.98]
[1757386117532,7.39,211.37,211.28,4.98]
[1757386120240,7.39,211.37,211.22,4.99]
[1757386120438,1.73557335,211.32,211.25,1.73557335]
[1757386120739,7.39,211.37,211.22,4.99]
[1757386120740,1.73557335,211.3,211.23,1.73557335]
[1757386120941,1.73557335,211.34,211.27,1.73557335]
[1757386121137,1.73557335,211.34,211.26,4.99]
[1757386121332,7.39,211.37,211.26,4.99]
[1757386121333,7.39,211.33,211.26,4.99]
[1757386121738,7.39,211.33,211.19,1.30237174]
[1757386121739,1.73557335,211.31,211.24,4.99]
[1757386121936,184.7358237,211.46,211.19,2.12623538]
[1757386121937,7.39,211.45,211.27,1.73557335]
[1757386122242,1.73557335,211.33,211.26,4.99]
[1757386123435,1.73557335,211.35,211.26,4.99]
[1757386123640,1.73557335,211.36,211.28,4.98]
[1757386124342,9.27557335,211.32,211.2,4.98]
[1757386124643,9.27557335,211.32,211.23,1.73557335]
[1757386125533,1.73557335,211.3,211.2,4.98]
[1757386125938,7.54,211.29,211.21,1.73557335]
[1757386126137,1.73557335,211.28,211.21,1.73557335]
[1757386127343,1.73557335,211.26,211.2,6.71557335]
[1757386128134,1.73557335,211.26,211.2,4.98]
[1757386128334,7.54,211.29,211.2,6.71557335]
[1757386128536,1.73557335,211.27,211.2,6.71557335]
[1757386128836,1.73557335,211.28,211.2,6.71557335]
[1757386129143,1.73557335,211.28,211.21,1.73557335]
[1757386129339,1.73557335,211.28,211.2,4.98]
[1757386129542,1.73557335,211.28,211.2,6.71557335]
[1757386129940,1.73557335,211.26,211.2,6.71557335]
[1757386130941,7.54,211.29,211.2,6.71557335]
[1757386131140,1.73557335,211.27,211.2,6.71557335]
[1757386131540,1.73557335,211.28,211.2,6.71557335]
[1757386132145,1.73557335,211.27,211.2,6.71557335]
[1757386132541,7.54,211.39,211.23,6.71557335]
[1757386132747,1.73557335,211.31,211.23,6.71557335]
[1757386132952,1.73557335,211.31,211.23,4.98]
[1757386133247,1.73557335,211.29,211.23,4.98]
[1757386134043,1.73557335,211.3,211.23,4.98]
[1757386134442,7.54,211.31,211.23,4.98]
[1757386135642,7.85946189,211.41,211.23,4.98]
[1757386135643,7.54,211.36,211.23,4.98]
[1757386135848,2.71264159,211.39,211.26,4.98]
[1757386136038,10.25264159,211.45,211.32,4.98]
[1757386136348,10.25264159,211.45,211.33,4.98]
[1757386136848,2.71264159,211.42,211.33,4.98]
[1757386137051,2.71264159,211.41,211.33,4.98]
[1757386137350,7.54,211.42,211.33,4.98]
[1757386137547,179.49015055,211.46,211.33,4.98]
[1757386137548,182.20279214,211.46,211.33,4.98]
[1757386137752,182.20279214,211.46,211.35,2.71264159]
[1757386137954,182.20279214,211.46,211.36,4.98]
[1757386138348,7.54,211.45,211.36,4.98]
[1757386139852,182.20279214,211.46,211.38,2.71264159]
[1757386139853,179.49015055,211.46,211.38,2.71264159]
[1757386140444,7.54,211.49,211.39,4.98]
[1757386140644,7.54,211.49,211.42,4.98]
[1757386141455,7.54,211.49,211.37,13.62]
[1757386141648,7.54,211.49,211.37,16.33264159]
[1757386142245,7.54,211.49,211.4,2.71264159]
[1757386142450,7.54,211.49,211.37,4.98]
[1757386142752,7.54,211.49,211.37,7.69264159]
[1757386143057,7.54,211.49,211.37,4.98]
[1757386143457,7.54,211.49,211.39,2.71264159]
[1757386145858,7.54,211.53,211.45,2.71264159]
[1757386146357,7.54,211.58,211.48,2.71264159]
[1757386146556,7.54,211.58,211.51,2.71264159]
[1757386147755,7.54,211.58,211.49,7.69264159]
[1757386148161,7.54,211.62,211.52,2.71264159]
[1757386148362,7.54,211.62,211.5,4.98]
[1757386148660,7.54,211.59,211.5,4.98]
[1757386149462,0.03320768,211.57,211.5,4.98]
[1757386149657,7.54,211.56,211.52,0.03229346]
[1757386152161,0.03320768,211.57,211.52,0.03229346]
[1757386152362,7.57320768,211.57,211.52,0.03229346]
[1757386152559,7.57320768,211.57,211.52,5.01229346]
[1757386152959,7.57320768,211.57,211.52,0.03229346]
[1757386153269,7.17,211.56,211.52,0.03229346]
[1757386153465,0.03320768,211.57,211.52,0.03229346]
[1757386153670,150.0,211.56,211.52,0.03229346]
[1757386154868,7.17,211.55,211.52,0.03229346]
[1757386155068,150.0,211.56,211.52,0.03229346]
[1757386155269,7.17,211.55,211.52,0.03229346]
[1757386155871,150.0,211.56,211.52,0.03229346]
[1757386156372,150.0,211.56,211.4,318.08]
[1757386156574,7.17,211.55,211.4,318.08]
[1757386156768,150.0,211.56,211.4,318.08]
[1757386156974,7.17,211.55,211.41,4.99]
[1757386157376,7.17,211.53,211.41,4.99]
[1757386157574,7.17,211.51,211.4,318.08]
[1757386157775,7.17,211.49,211.4,318.08]
[1757386163383,0.03571626,211.5,211.41,4.99]
[1757386165878,0.03571626,211.5,211.44,4.99]
[1757386166182,0.03571626,211.5,211.46,4.99]
[1757386167373,0.03571626,211.5,211.45,4.99]
[1757386167575,0.03571626,211.5,211.44,122.18]
[1757386167781,0.03571626,211.5,211.45,4.99]
[1757386167979,0.03571626,211.5,211.44,122.18]
[1757386168375,0.03571626,211.5,211.45,4.99]
[1757386168581,0.03571626,211.5,211.44,122.18]
[1757386168777,0.03571626,211.5,211.45,4.99]
[1757386169382,0.03571626,211.5,211.46,122.12]
[1757386169580,0.03571626,211.5,211.47,4.99]
[1757386170086,0.03571626,211.5,211.46,122.06]
[1757386170686,0.03571626,211.5,211.47,4.99]
[1757386171787,0.03571626,211.5,211.46,122.06]
[1757386172184,0.03571626,211.5,211.47,4.99]
[1757386172382,0.03571626,211.5,211.46,122.06]
[1757386172586,0.03571626,211.5,211.47,4.99]
[1757386173088,0.03571626,211.5,211.47,126.95]
[1757386173485,0.03571626,211.5,211.47,4.99]
[1757386173685,0.03571626,211.5,211.47,126.95]
[1757386173885,0.03571626,211.5,211.47,126.89]
[1757386174086,0.03571626,211.5,211.47,121.9]
[1757386174389,0.03571626,211.5,211.48,4.99]
[1757386174779,0.03571626,211.5,211.47,121.9]
[1757386175182,0.03571626,211.5,211.48,4.99]
[1757386176286,0.03571626,211.5,211.48,126.85]
[1757386176482,0.03571626,211.5,211.49,4.99]
[1757386183297,0.03571626,211.5,211.48,69.72]
[1757386183498,0.03571626,211.5,211.44,5.01]
[1757386183698,0.03571626,211.5,211.44,126.55]
[1757386185597,0.03571626,211.5,211.44,5.01]
[1757386185798,0.03571626,211.5,211.44,126.55]
[1757386190403,0.03571626,211.5,211.44,129.25673226]
[1757386190803,0.03571626,211.5,211.44,124.24673226]
[1757386191004,0.03571626,211.5,211.46,5.01]
[1757386191201,0.03571626,211.5,211.44,124.24673226]
[1757386191404,0.03571626,211.5,211.45,5.01]
[1757386191999,0.03571626,211.5,211.44,124.24673226]
[1757386192501,0.03571626,211.5,211.45,5.01]
[1757386193001,0.03571626,211.5,211.44,124.24673226]
[1757386194406,0.03571626,211.5,211.45,5.01]
[1757386195305,0.03571626,211.5,211.47,5.01]
[1757386195509,0.03571626,211.5,211.45,5.01]
[1757386195704,0.03571626,211.5,211.46,120.92]
[1757386195911,0.03571626,211.5,211.47,5.01]
[1757386196106,0.03571626,211.5,211.46,120.92]
[1757386196410,0.03571626,211.5,211.48,5.01]
[1757386199611,0.03571626,211.5,211.36,3.935373]
[1757386199612,7.58,211.45,211.22,7.23]
[1757386199811,12.79082836,211.36,211.32,1.73218886]
[1757386200011,7.58,211.4,211.32,8.96218886]
[1757386200215,0.03403521,211.36,211.32,8.96218886]
[1757386200416,8.24108545,211.35,211.32,1.73218886]
[1757386200718,8.24108545,211.34,211.3,1.73218886]
[1757386200915,8.24108545,211.33,211.3,1.73218886]
[1757386201217,8.24108545,211.32,211.29,1.73218886]
[1757386201415,3.70377936,211.31,211.3,5.75087777]
[1757386202419,7.61201229,211.33,211.3,5.75087777]
[1757386202621,3.70377936,211.32,211.31,5.75087777]
[1757386203714,3.70377936,211.32,211.19,1.30237174]
[1757386203920,7.58,211.3,211.24,1.73218886]
[1757386204124,3.70377936,211.29,211.28,7.23]
[1757386204320,0.03418251,211.29,211.22,1.73218886]
[1757386204518,3.70377936,211.28,211.22,1.73218886]
[1757386204724,3.70377936,211.27,211.23,7.23]
[1757386205029,3.70377936,211.26,211.22,1.73218886]
[1757386205228,0.03418251,211.29,211.23,7.23]
[1757386205522,1.73218886,211.27,211.19,3.0345606]
[1757386205722,3.75815372,211.26,211.2,7.23]
[1757386206026,3.75815372,211.25,211.19,113.07237174]
[1757386206220,0.03418251,211.29,211.19,8.53237174]
[1757386206422,3.75383243,211.28,211.2,1.73218886]
[1757386206627,0.03229538,211.26,211.25,1.73218886]
[1757386206927,0.03229538,211.26,211.25,8.96218886]
[1757386207325,0.03229538,211.26,211.25,7.23]
[1757386208624,0.03229538,211.26,211.25,8.96218886]
[1757386210820,0.03229538,211.26,211.25,7.23]
[1757386211026,1.98302886,211.39,211.25,7.71]
[1757386211220,1.98302886,211.39,211.24,1.73218886]
[1757386211221,3.74898917,211.38,211.33,8.96218886]
[1757386211418,5.48117803,211.37,211.33,7.23]
[1757386211616,0.25084,211.39,211.29,35.02]
[1757386211617,1.73218886,211.35,211.29,8.96218886]
[1757386211818,3.74898917,211.34,211.3,7.23]
[1757386212019,1.73218886,211.37,211.3,7.23]
[1757386212223,3.74820637,211.36,211.3,7.23]
[1757386212426,3.74820637,211.35,211.29,8.96218886]
[1757386212726,3.74820637,211.34,211.3,7.23]
[1757386212920,1.73218886,211.37,211.29,8.96218886]
[1757386213122,1.73218886,211.35,211.29,7.23]
[1757386213329,5.47972426,211.34,211.26,1.73218886]
[1757386213528,1.73218886,211.32,211.24,9.06218886]
[1757386213725,1.73218886,211.3,211.24,7.33]
[1757386213924,11.5975354,211.29,211.24,7.33]
[1757386214124,1.73218886,211.32,211.23,9.06218886]
[1757386214434,3.74480648,211.31,211.25,1.73218886]
[1757386214722,9.58218886,211.33,211.25,1.73218886]
[1757386214927,3.74535616,211.32,211.25,1.73218886]
[1757386215130,3.74535616,211.31,211.25,1.73218886]
[1757386215332,9.58218886,211.33,211.25,1.73218886]
[1757386215521,3.74449647,211.32,211.25,1.73218886]
[1757386215725,3.74449647,211.31,211.25,1.73218886]
[1757386215919,9.58218886,211.33,211.25,1.73218886]
[1757386216124,3.74437521,211.32,211.25,1.73218886]
[1757386216330,3.74437521,211.32,211.2,7.33]
[1757386216331,11.59437521,211.31,211.2,7.33]
[1757386216528,9.58218886,211.28,211.2,9.06218886]
[1757386216830,3.74437521,211.27,211.2,9.06218886]
[1757386217029,3.74437521,211.26,211.2,9.06218886]
[1757386217229,3.74437521,211.25,211.2,9.06218886]
[1757386217430,0.03602103,211.25,211.21,0.03443386]
[1757386217625,7.88602103,211.25,211.21,0.03443386]
[1757386218826,7.85,211.24,211.21,0.03443386]
[1757386220337,3.73496474,211.23,211.21,0.03443386]
[1757386220540,7.85,211.24,211.21,0.03443386]
[1757386220732,3.73508057,211.23,211.21,0.03443386]
[1757386220932,7.85,211.24,211.21,0.03443386]
[1757386221135,11.58508057,211.23,211.21,0.03443386]
[1757386221332,7.85,211.23,211.21,0.03443386]
[1757386221840,7.85,211.24,211.21,0.03443386]
[1757386222039,7.85,211.24,211.19,0.17237174]
[1757386222040,7.85,211.22,211.19,0.17237174]
[1757386222231,1.73218886,211.2,211.07,7.33]
[1757386222435,1.73218886,211.1,211.05,0.82443942]
[1757386222737,3.7336731,211.09,211.05,0.82443942]
[1757386222933,7.85,211.07,211.05,0.82443942]
[1757386223132,5.21082836,211.19,211.05,0.82443942]
[1757386223337,0.03266771,211.08,211.04,1.73218886]
[1757386223534,0.03266771,211.08,211.02,112.82]
[1757386223535,0.03266771,211.08,211.07,7.33]
[1757386223736,1.73218886,211.13,211.07,7.33]
[1757386223937,0.0332913,211.1,211.08,1.73218886]
[1757386224137,3.72397236,211.09,211.08,1.73218886]
[1757386224338,7.85,211.23,211.08,7.33]
[1757386224537,21.47624254,211.26,211.02,113.64472272]
[1757386224538,0.03440987,211.11,211.1,7.33]
[1757386224935,3.72016521,211.11,211.05,109.2]
[1757386225135,7.85,211.15,211.02,0.82472272]
[1757386225441,0.03322577,211.13,211.03,7.33]
[1757386225736,7.85,211.11,211.04,129.12]
[1757386225936,3.71804398,211.1,211.04,129.12]
[1757386226135,3.71804398,211.09,211.03,129.08]
[1757386226338,3.71804398,211.08,211.04,7.33]
[1757386226638,0.03523322,211.09,211.03,129.08]
[1757386226843,3.71528648,211.08,211.04,129.04]
[1757386227044,0.03523322,211.09,211.02,7.33]
[1757386227244,3.71526616,211.08,211.03,136.31]
[1757386227444,3.71526616,211.07,211.03,136.31]
[1757386227743,0.03523322,211.09,211.04,128.96]
[1757386227942,0.03523322,211.09,211.0,0.82469341]
[1757386227943,7.85,211.07,211.0,0.82469341]
[1757386228137,3.74794013,211.06,210.99,23.19622509]
[1757386228342,7.85,211.07,210.99,23.19622509]
[1757386228343,3.74794013,211.05,210.99,23.19622509]
[1757386228537,3.74794013,211.04,210.99,23.19622509]
[1757386228842,7.85,211.02,210.99,23.19622509]
[1757386229038,3.74794013,211.01,210.99,23.19622509]
[1757386229239,7.85,211.02,210.99,23.19622509]
[1757386229444,3.74089954,211.01,210.99,23.19622509]
[1757386229742,7.88444742,211.04,210.99,23.19622509]
[1757386229935,3.74157574,211.03,210.99,23.19622509]
[1757386230141,3.74157574,211.02,210.99,23.19622509]
[1757386230345,11.59157574,211.01,210.99,23.19622509]
[1757386230553,3.74157574,211.0,210.99,23.19622509]
[1757386231346,0.03444742,211.04,210.99,23.19622509]
[1757386231546,3.73684017,211.03,210.99,23.19622509]
[1757386231746,3.73684017,211.02,211.0,7.33]
[1757386231945,0.03444742,211.04,211.01,7.33]
[1757386232147,0.03444742,211.04,211.0,4.27971841]
[1757386232346,0.03444742,211.04,211.01,7.33]
[1757386232942,0.03444742,211.04,211.0,4.27971841]
[1757386233141,0.03444742,211.04,211.01,7.33]
[1757386233344,0.03444742,211.04,211.0,4.27971841]
[1757386233647,0.03444742,211.04,211.01,131.1]
[1757386233840,0.03444742,211.04,211.02,7.33]
[1757386234038,7.85,211.16,211.02,7.33]
[1757386234248,3.73802864,211.15,211.09,7.33]
[1757386234449,3.73802864,211.14,211.1,138.27]
[1757386234645,3.73802864,211.13,211.1,130.94]
[1757386234854,7.85,211.21,211.11,138.25]
[1757386235048,3.7377639,211.2,211.11,138.25]
[1757386235250,3.7377639,211.19,211.12,130.88]
[1757386235547,14.19,211.37,211.12,130.88]
[1757386235548,7.85,211.31,211.19,7.33]
[1757386235751,7.85,211.31,211.2,130.84]
[1757386235946,7.85,211.31,211.21,130.92]
[1757386236749,7.85,211.31,211.22,130.84]
[1757386236949,7.85,211.31,211.23,0.0321351]
[1757386237349,4.27971841,211.37,211.24,130.76]
[1757386237550,7.85,211.34,211.24,138.09]
[1757386237749,7.85,211.34,211.25,130.72]
[1757386238949,7.85,211.34,211.26,130.66]
[1757386239654,7.85,211.32,211.27,130.56]
[1757386240650,8.11524,211.29,211.27,130.56]
[1757386241048,7.85,211.29,211.27,130.56]
[1757386242457,7.85,211.29,211.26,130.26]
[1757386242756,13.06082836,211.34,211.23,0.0321351]
[1757386242953,4.27971841,211.35,211.24,130.02]
[1757386242954,7.85,211.32,211.24,130.02]
[1757386243153,7.85,211.32,211.23,0.0321351]
[1757386243349,7.85,211.32,211.24,130.02]
[1757386243654,13.03082836,211.33,211.25,0.03383946]
[1757386243852,7.82,211.29,211.25,0.03383946]
[1757386244053,5.21082836,211.31,211.25,0.03383946]
[1757386244355,5.21082836,211.33,211.25,0.03383946]
[1757386244562,13.03082836,211.36,211.25,0.03383946]
[1757386244761,5.21082836,211.37,211.26,7.23]
[1757386244952,5.21082836,211.38,211.27,32.37971841]
[1757386245253,5.21082836,211.39,211.27,4.27971841]
[1757386245448,7.82,211.38,211.3,0.0311724]
[1757386246156,7.82,211.38,211.31,129.86]
[1757386246652,0.24892,211.4,211.31,129.86]
[1757386246857,0.24892,211.4,211.3,7.2611724]
[1757386247051,0.24892,211.4,211.31,112.48]
[1757386247254,0.24892,211.4,211.3,7.2611724]
[1757386247255,5.45974836,211.4,211.3,7.2611724]
[1757386248152,5.45974836,211.4,211.31,95.7]
[1757386248350,5.45974836,211.4,211.3,7.2611724]
[1757386248555,5.45974836,211.4,211.31,129.56]
[1757386248757,5.45974836,211.4,211.3,7.2611724]
[1757386249153,0.24892,211.4,211.31,96.02]
[1757386249852,0.24892,211.4,211.31,7.23]
[1757386250057,0.24892,211.4,211.33,7.23]
[1757386250259,0.24892,211.4,211.34,119.84]
[1757386250758,0.24892,211.4,211.36,7.23]
[1757386251161,0.24892,211.4,211.36,136.57]
[1757386251758,0.24892,211.4,211.36,7.23]
[1757386251960,0.24892,211.4,211.36,136.49]
[1757386253758,7.82,211.39,211.36,129.22]
[1757386253954,7.82,211.39,211.35,0.03143424]
[1757386254361,7.82,211.39,211.35,92.37143424]
[1757386254561,8.3,211.39,211.35,0.03143424]
[1757386254859,8.3,211.38,211.35,0.03143424]
[1757386255055,9.73946677,211.4,211.35,0.03143424]
[1757386255362,7.82,211.38,211.35,0.03143424]
[1757386256664,0.24892,211.4,211.35,0.03143424]
[1757386257164,7.82,211.39,211.35,0.03143424]
[1757386257560,7.82,211.38,211.35,0.03143424]
[1757386257756,5.21082836,211.39,211.35,0.03143424]
[1757386257962,7.82,211.38,211.35,0.03143424]
[1757386258867,7.82,211.39,211.35,0.03143424]
[1757386259264,0.24892,211.4,211.35,0.03143424]
[1757386259464,7.82,211.39,211.35,0.03143424]
[1757386259659,0.24892,211.4,211.35,0.03143424]
[1757386259968,7.82,211.39,211.35,0.03143424]
[1757386260468,0.24892,211.4,211.35,0.03143424]
[1757386261062,7.82,211.39,211.35,0.03143424]
[1757386261661,150.0,211.38,211.35,0.03143424]
[1757386261867,7.82,211.37,211.35,0.03143424]
[1757386262169,7.82,211.36,211.35,0.03143424]
[1757386262463,13.03082836,211.39,211.35,0.03143424]
[1757386262662,0.24892,211.4,211.35,0.03143424]
[1757386262863,5.21082836,211.37,211.35,0.03143424]
[1757386263071,7.82,211.36,211.35,0.03143424]
[1757386263864,13.03082836,211.36,211.35,0.03143424]
[1757386264664,8.3,211.36,211.16,7.23]
[1757386264865,7.82,211.31,211.17,128.26]
[1757386265065,7.82,211.3,211.17,128.26]
[1757386265261,7.82,211.3,211.18,7.23]
[1757386265462,12.95933395,211.3,211.18,7.23]
[1757386265776,5.13933395,211.29,211.18,7.23]
[1757386266465,7.82,211.26,211.08,7.23]
[1757386266669,5.13933395,211.27,211.06,318.18]
[1757386266865,5.13933395,211.26,211.07,12.28]
[1757386267073,12.95933395,211.25,211.08,7.23]
[1757386267567,12.00439701,211.2,211.08,7.23]
[1757386267771,12.95933395,211.19,211.08,7.23]
[1757386268679,12.95933395,211.18,211.04,98.43]
[1757386269371,12.95933395,211.18,211.04,7.23]
[1757386270169,5.13933395,211.17,211.04,7.23]
[1757386271372,12.95933395,211.18,211.04,7.23]
[1757386272068,7.82,211.16,211.04,7.23]
[1757386273173,12.95933395,211.16,211.04,7.23]
[1757386274171,5.13933395,211.16,211.0,7.59]
[1757386274373,12.78933395,211.15,211.0,7.59]
[1757386275481,5.13933395,211.14,211.0,7.59]
[1757386275781,12.78933395,211.15,211.0,7.59]
[1757386276169,7.65,211.13,211.0,7.59]
[1757386276778,12.78933395,211.13,211.0,7.59]
[1757386276980,7.65,211.13,211.0,7.59]
[1757386279877,150.0,211.15,211.0,7.59]
[1757386280479,7.65,211.18,211.0,7.59]
[1757386280683,7.65,211.18,211.02,7.59]
[1757386280884,7.65,211.18,211.04,7.59]
[1757386281487,7.65,211.22,211.04,7.59]
[1757386281878,7.65,211.22,211.06,7.59]
[1757386282383,7.65,211.22,211.08,7.59]
[1757386283797,19.65439701,211.22,211.08,7.59]
[1757386283993,7.65,211.2,211.08,7.59]
[1757386284396,12.78933395,211.2,211.08,7.59]
[1757386284997,7.65,211.2,211.08,7.59]
[1757386285499,150.0,211.19,211.08,7.59]
[1757386285798,7.65,211.18,211.08,7.59]
[1757386286295,150.0,211.17,211.08,7.59]
[1757386289097,7.65,211.16,211.08,7.59]
[1757386291102,150.0,211.17,211.08,7.59]
[1757386291299,12.78933395,211.24,211.08,7.59]
[1757386292093,12.78933395,211.24,211.07,7.59]
[1757386292094,7.65,211.24,211.07,7.59]
[1757386292799,7.65,211.21,211.07,7.59]
[1757386292995,7.65,211.17,211.07,7.59]
[1757386293292,7.65,211.17,211.02,7.59]
[1757386293700,7.65,211.17,211.02,133.57]
[1757386293889,7.65,211.17,211.02,125.98]
[1757386294090,7.65,211.17,211.03,7.59]
[1757386295398,12.78933395,211.17,211.03,7.59]
[1757386298400,150.0,211.16,211.03,7.59]
[1757386299500,155.13933395,211.16,211.03,7.59]
[1757386300695,7.65,211.15,211.03,7.59]
[1757386301300,12.78933395,211.15,211.03,7.59]
[1757386303902,5.13933395,211.14,211.03,7.59]
[1757386304208,5.13933395,211.18,211.03,7.59]
[1757386304507,5.13933395,211.17,211.03,7.59]
[1757386304900,5.13933395,211.18,211.04,99.26]
[1757386305101,5.13933395,211.18,211.05,7.65]
[1757386305307,5.13933395,211.18,211.07,7.65]
[1757386306301,5.13933395,211.18,210.99,23.19622509]
[1757386306302,5.13933395,211.22,211.1,7.65]
[1757386306504,5.13933395,211.21,211.12,7.65]
[1757386307102,5.13933395,211.19,211.12,7.65]
[1757386307309,5.13933395,211.18,211.12,7.65]
[1757386308309,5.13933395,211.17,211.07,31.2]
[1757386308506,5.13933395,211.17,211.08,7.65]
[1757386309307,5.13933395,211.2,211.1,7.65]
[1757386309506,5.13933395,211.19,211.1,7.65]
[1757386309900,5.13933395,211.2,211.1,7.65]
[1757386311405,7.84,211.25,211.1,7.65]
[1757386311406,5.13933395,211.21,211.1,7.65]
[1757386312111,5.13933395,211.23,211.14,7.65]
[1757386312306,5.13933395,211.28,211.18,7.65]
[1757386312609,0.26861,211.3,211.22,7.65]
[1757386312610,5.40794395,211.3,211.22,7.65]
[1757386313108,0.02989756,211.28,211.25,7.65]
[1757386313506,0.02989756,211.28,211.24,0.0313302]
[1757386313705,0.02989756,211.28,211.25,7.65]
[1757386314409,0.02989756,211.28,211.24,0.0313302]
[1757386314908,0.02989756,211.28,211.25,7.65]
[1757386315408,0.02989756,211.28,211.24,0.0313302]
[1757386315409,7.84,211.27,211.24,0.0313302]
[1757386315607,7.84,211.26,211.24,0.0313302]
[1757386315809,7.84,211.25,211.24,0.0313302]
[1757386316005,5.13933395,211.26,211.24,0.0313302]
[1757386316207,7.84,211.25,211.24,0.0313302]
[1757386316508,7.84,211.25,211.1,7.65]
[1757386316706,5.19087164,211.23,211.1,7.65]
[1757386316911,5.19087164,211.22,211.1,7.65]
[1757386317704,0.03231561,211.18,211.1,7.65]
[1757386318510,0.03231561,211.18,211.1,110.77]
[1757386318808,0.03231561,211.18,211.1,7.65]
[1757386319208,0.03231561,211.18,211.1,110.11]
[1757386319712,0.03231561,211.18,211.1,132.47]
[1757386321711,0.03231561,211.18,211.1,7.65]
[1757386322010,0.03231561,211.18,211.11,100.5]